Workbook

Sheet Данные
A1: Перевозка по территории за | H1: апрель | I1: 2018
A2: № п/п | B2: Дата | C2: Авто № 1 | D2: Авто №2 | E2: Авто № 3 | F2: Авто № 4 | G2: Авто № 5 | H2: Авто № 6 | K2: Всего :
A3: 1 | B3: =IF(MONTH($H$1&0)=MONTH(DATE($I$1,MONTH($H$1&0),A3)),DATE($I$1,MONTH($H$1&0),A3),"") -> 2018-04-01 | C3: 80 | D3: 80 | E3: 96 | F3: 0 | G3: 80 | H3: 32 | K3: =SUM(C3:J3) -> 368
A4: 2 | B4: =IF(MONTH($H$1&0)=MONTH(DATE($I$1,MONTH($H$1&0),A4)),DATE($I$1,MONTH($H$1&0),A4),"") -> 2018-04-02 | C4: 144 | D4: 160 | E4: 160 | F4: 0 | G4: 160 | H4: 160 | K4: =SUM(C4:J4) -> 784
A5: 3 | B5: 2018-04-03 | C5: 128 | D5: 144 | E5: 128 | F5: 0 | G5: 144 | H5: 144 | K5: 688
A6: 4 | B6: 2018-04-04 | C6: 128 | D6: 112 | E6: 128 | F6: 0 | G6: 160 | H6: 192 | K6: 720
A7: 5 | B7: 2018-04-05 | C7: 112 | D7: 96 | E7: 176 | F7: 0 | G7: 160 | H7: 144 | K7: 688
A8: 6 | B8: 2018-04-06 | C8: 176 | D8: 128 | E8: 192 | F8: 0 | G8: 176 | H8: 160 | K8: 832
A9: 7 | B9: 2018-04-07 | C9: 128 | D9: 112 | E9: 112 | F9: 0 | G9: 144 | H9: 144 | K9: 640
A10: 8 | B10: 2018-04-08 | C10: 0 | D10: 0 | E10: 0 | F10: 0 | G10: 0 | H10: 0 | K10: 0
A11: 9 | B11: 2018-04-09 | C11: 144 | D11: 144 | E11: 160 | F11: 0 | G11: 176 | H11: 144 | K11: 768
A12: 10 | B12: 2018-04-10 | C12: 112 | D12: 128 | E12: 160 | F12: 0 | G12: 160 | H12: 112 | K12: 672
A13: 11 | B13: 2018-04-11 | C13: 112 | D13: 112 | E13: 112 | F13: 0 | G13: 128 | H13: 112 | K13: =SUM(C13:J13) -> 576
A14: 12 | B14: 2018-04-12 | C14: 96 | D14: 144 | E14: 144 | F14: 0 | G14: 144 | H14: 160 | K14: 688
A15: 13 | B15: 2018-04-13 | C15: 160 | D15: 192 | E15: 160 | F15: 0 | G15: 176 | H15: 128 | K15: 816
A16: 14 | B16: 2018-04-14 | C16: 192 | D16: 128 | E16: 192 | F16: 0 | G16: 192 | H16: 192 | K16: 896
A17: 15 | B17: 2018-04-15 | C17: 144 | D17: 128 | E17: 128 | F17: 0 | G17: 160 | H17: 144 | K17: 704
A18: 16 | B18: 2018-04-16 | C18: 192 | D18: 144 | E18: 192 | F18: 0 | G18: 192 | H18: 192 | K18: 912
A19: 17 | B19: 2018-04-17 | C19: 240 | D19: =12*16 -> 192 | E19: 240 | F19: 0 | G19: 240 | H19: 240 | K19: 1152
A20: 18 | B20: 2018-04-18 | C20: =13*16 -> 208 | D20: =15*16 -> 240 | E20: =13*16 -> 208 | F20: 0 | G20: =13*16 -> 208 | H20: =14*16 -> 224 | K20: 1088
A21: 19 | B21: 2018-04-19 | C21: =14*16 -> 224 | D21: =12*16 -> 192 | E21: =14*16 -> 224 | F21: 0 | G21: =14*16 -> 224 | H21: =14*16 -> 224 | K21: 1088
A22: 20 | B22: 2018-04-20 | C22: 240 | D22: =14*16 -> 224 | E22: =15*16 -> 240 | F22: 0 | G22: 240 | H22: 240 | K22: 1184
A23: 21 | B23: 2018-04-21 | C23: =15*16 -> 240 | D23: =14*16 -> 224 | E23: =13*16 -> 208 | F23: 0 | G23: 240 | H23: 240 | K23: 1152
A24: 22 | B24: 2018-04-22 | C24: =22*16 -> 352 | D24: =18*16 -> 288 | E24: =19*16 -> 304 | F24: 0 | G24: =16*16 -> 256 | H24: =18*16 -> 288 | K24: 1488
A25: 23 | B25: 2018-04-23 | C25: =18*16 -> 288 | D25: =18*16 -> 288 | E25: 288 | F25: 0 | G25: 288 | H25: 288 | K25: 1440
A26: 24 | B26: 2018-04-24 | C26: 240 | D26: 288 | E26: 240 | F26: 0 | G26: 256 | H26: 208 | K26: 1232
A27: 25 | B27: 2018-04-25 | C27: =15*16 -> 240 | D27: 208 | E27: 208 | F27: 0 | G27: =13*16 -> 208 | H27: =12*16 -> 192 | K27: 1056
A28: 26 | B28: 2018-04-26 | C28: =15*16 -> 240 | D28: 0 | E28: =10*16 -> 160 | F28: 0 | G28: 160 | H28: =11*16 -> 176 | K28: 736
A29: 27 | B29: 2018-04-27 | K29: 0
A30: 28 | B30: 2018-04-28 | K30: 0
A31: 29 | B31: 2018-04-29 | K31: 0
A32: 30 | B32: 2018-04-30 | K32: 0
A33: 31 | K33: 0
C34: =SUM(C3:C33) -> 4560 | D34: 4096 | E34: 4560 | F34: 0 | G34: 4672 | H34: 4480 | I34: 0 | J34: 0 | K34: 22368

Sheet Форма
A1: Отчет № | B1: 1 | E1: Форма 100500
A3: Выполнение на | B3: =Данные!B3 -> 2018-04-01 | C3: по автомобилям
A4: Автомобиль | B4: =Данные!C2 -> Авто № 1 | C4: =Данные!D2 -> Авто №2 | D4: =Данные!E2 -> Авто № 3 | E4: =Данные!F2 -> Авто № 4 | F4: =Данные!G2 -> Авто № 5 | G4: =Данные!H2 -> Авто № 6
A5: Масса | B5: =INDEX(Данные!$C3:$ZZ33,$B1,COLUMN(A1)) -> 80 | C5: =INDEX(Данные!$C3:$ZZ33,$B1,COLUMN(B1)) -> 80 | D5: =INDEX(Данные!$C3:$ZZ33,$B1,COLUMN(C1)) -> 96 | E5: =INDEX(Данные!$C3:$ZZ33,$B1,COLUMN(D1)) -> 0 | F5: =INDEX(Данные!$C3:$ZZ33,$B1,COLUMN(E1)) -> 80 | G5: =INDEX(Данные!$C3:$ZZ33,$B1,COLUMN(F1)) -> 32
A6: Объем | B6: =B5*1.8 -> 144 | C6: =C5*1.8 -> 144 | D6: 172.8 | E6: 0 | F6: 144 | G6: 57.6
A7: Зачесть | B7: =IF(B6>100,B6*1.5,B6) -> 216 | C7: =IF(C6>100,C6*1.5,C6) -> 216 | D7: 259.2 | E7: 0 | F7: 216 | G7: 57.6
